{"text_format":"1","workbook":"xlsx","n_sheets":1,"sheets":["給与支払報告書"],"not_rendered":{"charts":0,"images":1,"macros":0,"external_links":0,"defined_names":1,"comments":0,"pivot_tables":0},"unopened":[],"bounds":{"document_bytes":16777216,"sheet_cells":100000,"rows_first":2000,"rows_last":500,"rows_between":2000,"halvings":0,"cell_chars":16384,"cell_head_chars":4096},"cells_cut":0,"cells_raw":0,"read":"whole","date_system":"1900"}

{"sheet":"給与支払報告書","index":0,"n_rows":179,"n_cols":237,"rows_kept":179,"cut":false,"hidden":false,"merged":[[122,198,123,216],[122,217,123,237],[124,126,126,148],[124,149,126,150],[170,123,178,124],[124,94,126,112],[125,30,126,51],[118,94,121,95],[118,96,121,98],[118,178,121,181],[124,151,126,152],[122,126,123,150],[122,151,123,176],[122,177,123,197],[29,94,31,112],[29,75,31,91],[29,54,31,71],[29,28,31,29],[29,30,29,51],[30,30,31,51],[29,26,31,27],[29,3,31,25],[71,40,74,44],[52,96,55,114],[56,89,57,90],[17,108,22,114],[23,108,26,112],[23,101,26,105],[23,96,26,98],[23,91,26,93],[17,91,18,107],[19,91,20,107],[21,49,22,64],[23,49,23,54],[24,49,26,54],[21,65,22,74],[21,75,22,84],[23,75,26,78],[23,79,26,80],[23,81,23,84],[24,81,26,84],[23,59,26,60],[23,55,26,58],[17,85,22,90],[23,85,26,88],[23,18,26,35],[17,18,22,37],[107,3,108,24],[107,25,108,47],[107,50,108,68],[107,73,108,90],[61,66,61,95],[59,53,61,55],[58,56,58,65],[56,53,58,55],[59,56,59,65],[53,45,54,49],[44,56,45,60],[44,61,45,62],[48,79,49,86],[48,87,49,88],[52,50,61,52],[59,66,59,88],[27,94,28,114],[27,75,28,93],[27,54,28,74],[27,28,28,53],[118,3,118,8],[122,3,123,27],[122,28,123,53],[122,54,123,74],[122,75,123,93],[122,94,123,114],[124,3,126,25],[124,26,126,27],[124,28,126,29],[118,18,121,35],[118,36,118,37],[118,38,121,42],[118,43,121,44],[118,45,118,48],[118,49,118,54],[118,61,118,64],[118,99,121,100],[118,106,121,107],[118,108,121,112],[119,45,121,48],[119,49,121,54],[119,61,121,64],[119,71,121,74],[119,81,121,84],[118,113,121,114],[112,18,117,37],[112,38,113,84],[112,85,117,90],[112,91,113,107],[112,108,117,114],[114,38,115,84],[114,91,115,107],[116,38,117,48],[116,49,117,64],[116,65,117,74],[116,75,117,84],[118,59,121,60],[118,55,121,58],[118,101,121,105],[118,65,121,68],[118,69,121,70],[118,71,118,74],[118,75,121,78],[118,79,121,80],[118,81,118,84],[118,85,121,88],[118,89,121,90],[118,91,121,93],[71,70,74,74],[84,3,85,114],[71,8,74,11],[71,12,74,15],[67,65,70,69],[62,80,66,114],[67,80,70,99],[67,100,70,104],[67,60,70,64],[67,105,70,109],[71,35,74,39],[80,8,82,19],[75,3,82,7],[3,1,4,1],[75,8,76,19],[75,20,76,52],[75,53,76,114],[3,3,4,5],[3,6,4,8],[3,9,4,11],[6,67,6,78],[6,79,6,113],[8,1,74,1],[3,30,4,32],[3,33,4,35],[3,12,4,14],[3,15,4,17],[3,18,4,20],[3,21,4,23],[61,10,61,19],[61,20,61,49],[60,20,60,42],[59,20,59,42],[3,36,4,38],[3,39,4,41],[3,42,4,44],[56,66,56,88],[61,56,61,65],[53,66,53,88],[53,89,54,90],[53,53,55,55],[52,20,52,49],[58,20,58,49],[44,89,45,112],[46,20,46,42],[46,113,47,114],[46,71,47,78],[46,79,47,86],[50,43,51,44],[46,98,47,112],[56,96,57,114],[58,96,61,114],[50,96,51,114],[50,45,51,49],[48,113,49,114],[42,89,43,112],[44,73,45,79],[42,63,43,72],[46,60,49,68],[48,98,49,112],[48,89,49,97],[44,80,45,88],[50,53,52,55],[49,10,49,19],[42,49,43,53],[40,61,41,69],[23,3,23,8],[44,47,45,48],[49,20,49,49],[42,54,43,55],[24,71,26,74],[44,54,45,55],[24,9,26,14],[23,15,23,17],[42,56,43,60],[40,3,41,10],[40,11,41,20],[40,21,41,29],[40,30,41,31],[40,32,41,40],[36,5,38,114],[40,50,41,51],[40,100,41,112],[40,72,41,79],[40,70,41,71],[40,92,41,99],[40,113,41,114],[33,113,33,114],[40,90,41,91],[40,80,41,89],[33,5,35,112],[40,52,41,60],[29,92,31,93],[29,113,31,114],[23,71,23,74],[42,32,43,40],[23,99,26,100],[23,94,26,95],[42,80,43,88],[23,65,26,68],[24,61,26,64],[23,106,26,107],[23,89,26,90],[23,113,26,114],[23,38,26,42],[23,45,23,48],[24,45,26,48],[29,73,31,74],[24,3,26,8],[23,61,23,64],[32,3,32,16],[6,13,11,66],[1,73,2,93],[14,69,14,70],[15,72,16,90],[15,91,16,92],[14,25,14,28],[14,91,14,92],[15,69,16,70],[12,93,13,114],[14,96,14,111],[1,94,2,114],[3,74,4,92],[3,95,4,113],[3,51,4,53],[3,54,4,72],[9,67,11,70],[3,45,4,47],[3,48,4,50],[5,79,5,114],[15,113,16,114],[15,95,16,112],[15,50,16,68],[14,113,14,114],[12,73,13,90],[12,3,13,24],[9,78,9,111],[10,77,11,114],[7,79,8,114],[12,50,13,68],[46,3,49,9],[1,3,2,53],[14,46,14,47],[29,52,31,53],[3,24,4,26],[3,27,4,29],[14,30,14,44],[1,54,2,72],[7,67,8,77],[5,67,5,78],[5,3,11,8],[44,63,45,72],[44,113,45,114],[42,113,43,114],[42,61,43,62],[42,73,43,79],[20,3,21,14],[12,25,13,47],[20,15,22,17],[46,10,46,19],[15,46,16,47],[42,47,43,48],[18,3,19,17],[15,27,16,45],[14,3,16,24],[50,7,52,9],[44,49,45,53],[46,50,49,57],[24,15,26,17],[42,11,43,20],[44,11,45,20],[44,41,45,46],[42,41,43,46],[44,32,45,40],[44,30,45,31],[39,3,39,40],[47,10,48,19],[23,9,23,14],[17,38,18,84],[19,38,20,84],[21,38,22,48],[23,36,23,37],[71,105,74,109],[62,46,70,48],[67,110,70,114],[67,75,70,79],[71,55,74,59],[71,16,74,19],[71,75,74,79],[62,12,70,15],[67,55,70,59],[71,60,74,64],[62,50,74,54],[71,45,74,49],[62,40,70,44],[62,20,70,24],[62,25,64,34],[65,25,70,29],[65,30,70,34],[71,25,74,29],[71,30,74,34],[62,35,70,39],[67,70,70,74],[71,20,74,24],[71,80,74,99],[71,65,74,69],[42,3,45,10],[50,3,61,6],[59,7,61,9],[56,7,58,9],[53,7,55,9],[54,10,54,19],[59,91,60,95],[60,56,60,65],[60,66,60,88],[56,20,56,42],[54,20,54,42],[51,66,51,88],[50,89,51,90],[50,91,51,95],[51,56,51,65],[50,66,50,88],[57,56,57,65],[54,56,54,65],[51,20,51,42],[50,56,50,65],[56,56,56,65],[52,56,52,65],[52,66,52,95],[50,10,50,19],[23,69,26,70],[47,20,48,42],[46,43,48,44],[40,41,41,48],[48,71,49,78],[44,21,45,29],[42,21,43,31],[46,69,49,70],[23,43,26,44],[27,3,28,27],[135,236,136,237],[137,170,138,171],[137,172,138,176],[75,1,83,1],[81,87,82,92],[46,89,47,97],[54,66,54,88],[58,10,58,19],[58,66,58,95],[51,10,51,19],[59,43,60,44],[59,45,60,49],[53,91,54,95],[50,20,50,42],[77,8,79,19],[71,3,74,7],[62,3,70,7],[62,8,70,11],[62,16,70,19],[80,21,82,84],[77,21,79,114],[62,55,66,79],[71,110,74,114],[71,100,74,104],[141,89,142,97],[142,20,143,42],[137,56,138,60],[139,49,140,53],[139,54,140,55],[139,56,140,60],[139,61,140,62],[139,63,140,72],[139,73,140,79],[139,80,140,88],[139,89,140,112],[141,43,143,44],[141,45,143,49],[143,87,144,88],[143,89,144,97],[141,60,144,68],[141,69,144,70],[143,79,144,86],[141,79,142,86],[143,71,144,78],[141,71,142,78],[145,3,156,6],[145,7,147,9],[147,10,147,19],[147,20,147,49],[146,10,146,19],[151,10,151,19],[142,10,143,19],[124,73,126,74],[124,75,126,91],[137,3,140,10],[137,11,138,20],[137,21,138,31],[137,32,138,40],[137,41,138,46],[137,47,138,48],[137,49,138,53],[137,54,138,55],[145,91,146,95],[135,52,136,60],[135,61,136,69],[135,70,136,71],[135,72,136,79],[135,80,136,89],[135,92,136,99],[98,1,99,1],[172,8,174,19],[172,21,174,114],[103,1,169,1],[100,3,106,8],[100,9,106,12],[100,67,100,78],[157,3,165,7],[157,8,165,11],[166,65,169,69],[166,70,169,74],[166,75,169,79],[166,80,169,99],[166,45,169,49],[162,60,165,64],[162,80,165,99],[157,50,169,54],[151,56,151,65],[151,66,151,88],[151,89,152,90],[151,91,152,95],[154,91,155,95],[151,96,156,114],[113,3,114,17],[128,236,128,237],[131,128,133,237],[134,126,134,163],[135,153,136,154],[110,27,111,45],[110,46,111,47],[110,50,111,68],[110,69,111,70],[110,72,111,90],[110,91,111,92],[110,95,111,112],[110,113,111,114],[124,30,124,51],[124,52,126,53],[124,54,126,71],[128,5,130,112],[128,113,128,114],[127,126,127,139],[135,155,136,163],[135,164,136,171],[135,173,136,174],[135,175,136,183],[135,184,136,192],[135,193,136,194],[135,113,136,114],[135,126,136,133],[135,134,136,143],[135,144,136,152],[124,113,126,114],[131,5,133,114],[134,3,134,40],[135,3,136,10],[135,11,136,20],[135,21,136,29],[135,30,136,31],[135,32,136,40],[135,90,136,91],[135,41,136,48],[135,100,136,112],[135,50,136,51],[128,128,130,235],[135,195,136,202],[135,203,136,212],[135,213,136,214],[135,215,136,222],[135,223,136,235],[127,3,127,16],[124,92,126,93],[137,126,140,133],[137,134,138,143],[137,144,138,154],[137,155,138,163],[137,164,138,169],[141,3,144,9],[141,10,141,19],[141,20,141,42],[141,50,144,57],[144,10,144,19],[144,20,144,49],[139,11,140,20],[139,21,140,29],[139,30,140,31],[139,32,140,40],[139,41,140,46],[139,47,140,48],[139,113,140,114],[137,89,138,112],[137,113,138,114],[137,61,138,62],[137,63,138,72],[137,73,138,79],[137,80,138,88],[151,45,152,49],[153,10,153,19],[153,20,153,49],[152,10,152,19],[152,20,152,42],[141,98,142,112],[143,98,144,112],[143,113,144,114],[141,113,142,114],[145,50,146,52],[148,91,149,95],[145,53,147,55],[147,56,147,65],[149,56,149,65],[146,56,146,65],[145,10,145,19],[145,20,145,42],[145,43,146,44],[145,45,146,49],[145,56,145,65],[145,66,145,88],[145,89,146,90],[146,20,146,42],[141,87,142,88],[151,7,153,9],[149,66,149,88],[150,66,150,95],[148,7,150,9],[148,10,148,19],[148,20,148,42],[148,43,149,44],[148,45,149,49],[148,53,150,55],[147,50,156,52],[149,10,149,19],[149,20,149,42],[154,7,156,9],[150,10,150,19],[150,20,150,49],[147,66,147,95],[153,56,153,65],[150,56,150,65],[148,56,148,65],[148,66,148,88],[148,89,149,90],[153,66,153,95],[151,20,151,42],[151,43,152,44],[151,53,153,55],[152,56,152,65],[152,66,152,88],[145,126,156,129],[145,130,147,132],[145,133,145,142],[145,143,145,165],[145,166,146,167],[145,168,146,172],[145,96,150,114],[146,66,146,88],[155,66,155,88],[157,55,161,79],[157,80,161,114],[154,66,154,88],[156,56,156,65],[156,66,156,95],[154,53,156,55],[156,10,156,19],[156,20,156,49],[155,10,155,19],[155,20,155,42],[155,56,155,65],[154,56,154,65],[154,89,155,90],[154,10,154,19],[154,20,154,42],[154,43,155,44],[154,45,155,49],[157,12,165,15],[157,20,165,24],[157,148,159,157],[157,158,165,162],[157,163,165,167],[157,169,165,171],[157,173,169,177],[157,178,161,202],[157,203,161,237],[162,228,165,232],[162,233,165,237],[166,183,169,187],[166,188,169,192],[166,193,169,197],[166,198,169,202],[166,203,169,222],[166,223,169,227],[56,10,56,19],[55,56,55,65],[157,16,165,19],[162,100,165,104],[176,87,177,92],[176,93,177,114],[162,105,165,109],[166,16,169,19],[166,100,169,104],[166,55,169,59],[166,60,169,64],[166,35,169,39],[166,40,169,44],[160,30,165,34],[162,55,165,59],[157,35,165,39],[157,40,165,44],[157,25,159,34],[160,25,165,29],[157,46,165,48],[162,110,165,114],[162,65,165,69],[162,70,165,74],[162,75,165,79],[166,126,169,130],[166,131,169,134],[91,3,94,114],[55,66,55,95],[60,10,60,19],[59,10,59,19],[56,45,57,49],[46,45,48,49],[59,89,60,90],[56,91,57,95],[57,66,57,88],[53,10,53,19],[53,20,53,42],[46,87,47,88],[81,93,82,114],[50,50,51,52],[53,56,53,65],[55,10,55,19],[56,43,57,44],[52,10,52,19],[57,20,57,42],[53,43,54,44],[55,20,55,49],[57,10,57,19],[119,3,121,8],[178,3,179,16],[118,9,118,14],[118,15,118,17],[119,15,121,17],[119,9,121,14],[178,17,179,36],[178,37,179,49],[170,1,178,1],[170,3,177,7],[170,8,171,19],[170,20,171,52],[175,21,177,84],[170,53,171,114],[178,50,179,80],[175,8,177,19],[166,110,169,114],[166,3,169,7],[166,8,169,11],[166,12,169,15],[166,105,169,109],[166,20,169,24],[166,25,169,29],[166,30,169,34],[102,67,103,77],[104,67,106,70],[100,13,106,66],[101,79,101,113],[105,200,106,237],[115,3,116,14],[115,15,117,17],[105,77,106,114],[102,79,103,114],[104,78,104,111],[109,3,111,24],[109,69,109,70],[109,91,109,92],[107,93,108,114],[107,126,108,147],[107,148,108,170],[107,173,108,191],[107,196,108,213],[109,113,109,114],[109,96,109,111],[109,25,109,28],[109,30,109,44],[109,46,109,47],[6,9,11,12],[5,9,5,14],[21,91,22,100],[21,101,22,107],[116,91,117,100],[116,101,117,107],[91,126,94,237],[96,126,99,237],[98,124,99,124],[100,126,106,131],[100,132,106,135],[100,136,106,189],[100,190,100,201],[100,202,100,237],[101,190,101,201],[101,202,101,236],[102,190,103,200],[102,202,103,237],[103,124,169,124],[104,190,106,193],[104,201,104,234],[96,3,99,114],[100,79,100,114],[101,67,101,78],[107,216,108,237],[109,126,111,147],[109,148,109,151],[109,153,109,167],[109,169,109,170],[109,192,109,193],[109,214,109,215],[109,219,109,234],[109,236,109,237],[110,150,111,168],[110,169,111,170],[110,173,111,191],[110,192,111,193],[110,195,111,213],[110,214,111,215],[110,218,111,235],[110,236,111,237],[112,141,117,160],[112,161,113,207],[112,208,117,213],[112,214,113,230],[112,231,117,237],[113,126,114,140],[114,161,115,207],[114,214,115,230],[115,126,116,137],[115,138,117,140],[116,161,117,171],[116,172,117,187],[116,188,117,197],[116,198,117,207],[116,214,117,223],[116,224,117,230],[118,126,118,131],[118,132,118,137],[118,138,118,140],[118,141,121,158],[118,159,118,160],[118,161,121,165],[118,166,121,167],[118,168,118,171],[118,172,118,177],[119,126,121,131],[119,132,121,137],[119,138,121,140],[119,168,121,171],[119,172,121,177],[118,182,121,183],[118,184,118,187],[118,188,121,191],[118,192,121,193],[118,194,118,197],[118,198,121,201],[118,202,121,203],[118,204,118,207],[118,208,121,211],[119,184,121,187],[119,194,121,197],[119,204,121,207],[118,212,121,213],[118,214,121,216],[118,217,121,218],[118,219,121,221],[118,222,121,223],[118,224,121,228],[118,229,121,230],[118,231,121,235],[118,236,121,237],[124,153,124,174],[124,175,126,176],[124,177,126,194],[124,196,126,197],[124,198,126,214],[124,215,126,216],[124,217,126,235],[124,236,126,237],[125,153,126,174],[137,177,138,178],[137,179,138,183],[137,184,138,185],[137,186,138,195],[137,196,138,202],[137,203,138,211],[137,212,138,235],[137,236,138,237],[139,134,140,143],[139,144,140,152],[139,153,140,154],[139,155,140,163],[139,164,140,169],[139,170,140,171],[139,172,140,176],[139,177,140,178],[139,179,140,183],[139,184,140,185],[139,186,140,195],[139,196,140,202],[139,203,140,211],[139,212,140,235],[139,236,140,237],[141,126,144,132],[141,133,141,142],[141,143,141,165],[141,166,143,167],[141,168,143,172],[141,173,144,180],[141,183,144,191],[141,192,144,193],[141,194,142,201],[141,202,142,209],[141,210,142,211],[141,212,142,220],[141,221,142,235],[141,236,142,237],[142,133,143,142],[142,143,143,165],[143,194,144,201],[143,202,144,209],[143,210,144,211],[143,212,144,220],[143,221,144,235],[143,236,144,237],[144,133,144,142],[144,143,144,172],[145,189,145,211],[145,212,146,213],[145,214,146,218],[145,219,150,237],[146,133,146,142],[146,143,146,165],[146,179,146,188],[146,189,146,211],[147,133,147,142],[147,143,147,172],[147,173,156,175],[147,179,147,188],[147,189,147,218],[148,214,149,218],[151,214,152,218],[151,219,156,237],[154,214,155,218],[145,173,146,175],[145,176,147,178],[145,179,145,188],[148,130,150,132],[148,133,148,142],[148,143,148,165],[148,166,149,167],[148,168,149,172],[148,176,150,178],[148,179,148,188],[148,189,148,211],[148,212,149,213],[149,133,149,142],[149,143,149,165],[149,179,149,188],[149,189,149,211],[150,133,150,142],[150,143,150,172],[150,179,150,188],[150,189,150,218],[151,130,153,132],[151,133,151,142],[151,143,151,165],[151,166,152,167],[151,168,152,172],[151,176,153,178],[151,179,151,188],[151,189,151,211],[151,212,152,213],[152,133,152,142],[152,143,152,165],[152,179,152,188],[152,189,152,211],[153,133,153,142],[153,143,153,172],[153,179,153,188],[153,189,153,218],[162,203,165,222],[162,223,165,227],[154,130,156,132],[154,133,154,142],[154,143,154,165],[154,166,155,167],[154,168,155,172],[154,176,156,178],[154,179,154,188],[154,189,154,211],[154,212,155,213],[155,133,155,142],[155,143,155,165],[155,179,155,188],[155,189,155,211],[156,133,156,142],[156,143,156,172],[156,179,156,188],[156,189,156,218],[157,126,165,130],[157,131,165,134],[157,135,165,138],[157,139,165,142],[157,143,165,147],[166,168,169,172],[166,178,169,182],[160,148,165,152],[160,153,165,157],[162,178,165,182],[162,183,165,187],[162,188,165,192],[162,193,165,197],[162,198,165,202],[166,228,169,232],[166,233,169,237],[170,126,177,130],[170,131,171,142],[170,143,171,175],[170,176,171,237],[172,131,174,142],[172,144,174,237],[175,131,177,142],[175,144,177,207],[176,210,177,215],[176,216,177,237],[178,126,179,139],[178,140,179,159],[178,160,179,172],[178,173,179,203],[166,135,169,138],[166,139,169,142],[166,143,169,147],[166,148,169,152],[166,153,169,157],[166,158,169,162],[166,163,169,167]]}
[]
[null,null,null,"※",null,null,null,null,null,null,null,null,null,null,null,null,null,null,null,null,null,null,null,null,null,null,null,null,null,null,null,null,null,null,null,null,null,null,null,null,null,null,null,null,null,null,null,null,null,null,null,null,null,null,"※　種　　　　　　別",null,null,null,null,null,null,null,null,null,null,null,null,null,null,null,null,null,null,"※　　整　理　番　号",null,null,null,null,null,null,null,null,null,null,null,null,null,null,null,null,null,null,null,null,"※"]
[]
[null,"⑧"]
[]
[null,null,null,"支　払\n\nを受け\n\nる　者",null,null,null,null,null,"※区分",null,null,null,null,null,null,null,null,null,null,null,null,null,null,null,null,null,null,null,null,null,null,null,null,null,null,null,null,null,null,null,null,null,null,null,null,null,null,null,null,null,null,null,null,null,null,null,null,null,null,null,null,null,null,null,null,null,"（受給者番号）"]
[null,null,null,null,null,null,null,null,null,"住　　所",null,null,null,null,null,null,null,null,null,null,null,null,null,null,null,null,null,null,null,null,null,null,null,null,null,null,null,null,null,null,null,null,null,null,null,null,null,null,null,null,null,null,null,null,null,null,null,null,null,null,null,null,null,null,null,null,null,"（個人番号）"]
[null,null,null,null,null,null,null,null,null,null,null,null,null,null,null,null,null,null,null,null,null,null,null,null,null,null,null,null,null,null,null,null,null,null,null,null,null,null,null,null,null,null,null,null,null,null,null,null,null,null,null,null,null,null,null,null,null,null,null,null,null,null,null,null,null,null,null,"（役職名）"]
[null,"給与支払報告書（個人別明細書）"]
[null,null,null,null,null,null,null,null,null,null,null,null,null,null,null,null,null,null,null,null,null,null,null,null,null,null,null,null,null,null,null,null,null,null,null,null,null,null,null,null,null,null,null,null,null,null,null,null,null,null,null,null,null,null,null,null,null,null,null,null,null,null,null,null,null,null,null,"氏名",null,null,null,"（フリガナ）"]
[]
[]
[null,null,null,"種　　　　　　　　　　別",null,null,null,null,null,null,null,null,null,null,null,null,null,null,null,null,null,null,null,null,null,"支　　　払　　　金　　　額",null,null,null,null,null,null,null,null,null,null,null,null,null,null,null,null,null,null,null,null,null,null,null,null,"給与所得控除後の金額\n（調整控除後）",null,null,null,null,null,null,null,null,null,null,null,null,null,null,null,null,null,null,null,null,null,null,"所得控除の額の合計額",null,null,null,null,null,null,null,null,null,null,null,null,null,null,null,null,null,null,null,"源　泉　徴　収　税　額"]
[]
[null,null,null,null,null,null,null,null,null,null,null,null,null,null,null,null,null,null,null,null,null,null,null,null,null,"内",null,null,null,null,null,null,null,null,null,null,null,null,null,null,null,null,null,null,null,null,"円",null,null,null,null,null,null,null,null,null,null,null,null,null,null,null,null,null,null,null,null,null,null,"円",null,null,null,null,null,null,null,null,null,null,null,null,null,null,null,null,null,null,null,null,null,"円",null,"内",null,null,null,null,null,null,null,null,null,null,null,null,null,null,null,null,null,null,null,"円"]
[]
[]
[null,null,null,null,null,null,null,null,null,null,null,null,null,null,null,null,null,null,"配偶者（特別）\n控除の額",null,null,null,null,null,null,null,null,null,null,null,null,null,null,null,null,null,null,null,"控 除 対 象 扶 養 親 族 等 の 数",null,null,null,null,null,null,null,null,null,null,null,null,null,null,null,null,null,null,null,null,null,null,null,null,null,null,null,null,null,null,null,null,null,null,null,null,null,null,null,null,null,null,null,null,null,null,"１６歳未満扶養親族の数",null,null,null,null,null,"障 害 者 の 数",null,null,null,null,null,null,null,null,null,null,null,null,null,null,null,null,"非居住者\nである\n親族の数"]
[null,null,null,"（源泉）控除対象配偶者"]
[null,null,null,null,null,null,null,null,null,null,null,null,null,null,null,null,null,null,null,null,null,null,null,null,null,null,null,null,null,null,null,null,null,null,null,null,null,null,"（配偶者を除く。）",null,null,null,null,null,null,null,null,null,null,null,null,null,null,null,null,null,null,null,null,null,null,null,null,null,null,null,null,null,null,null,null,null,null,null,null,null,null,null,null,null,null,null,null,null,null,null,null,null,null,null,null,"（本人を除く。）"]
[null,null,null,"の有無等",null,null,null,null,null,null,null,null,null,null,null,"老人"]
[null,null,null,null,null,null,null,null,null,null,null,null,null,null,null,null,null,null,null,null,null,null,null,null,null,null,null,null,null,null,null,null,null,null,null,null,null,null,"特定",null,null,null,null,null,null,null,null,null,null,"老　人",null,null,null,null,null,null,null,null,null,null,null,null,null,null,null,"そ の 他",null,null,null,null,null,null,null,null,null,"特　親",null,null,null,null,null,null,null,null,null,null,null,null,null,null,null,"特　別",null,null,null,null,null,null,null,null,null,"その他"]
[]
[null,null,null,"有",null,null,null,null,null,"従有",null,null,null,null,null,null,null,null,null,null,null,null,null,null,null,null,null,null,null,null,null,null,null,null,null,null,"円",null,null,null,null,null,null,"人",null,"従人",null,null,null,"内",null,null,null,null,null,null,null,null,null,"人",null,"従人",null,null,null,null,null,null,null,"人",null,"従人",null,null,null,null,null,null,null,"人",null,"従人",null,null,null,null,null,null,null,"人",null,null,null,null,"内",null,null,null,null,"人",null,null,null,null,null,null,"人",null,null,null,null,null,null,"人"]
[]
[]
[]
[null,null,null,"特定親族特別控除の額",null,null,null,null,null,null,null,null,null,null,null,null,null,null,null,null,null,null,null,null,null,null,null,null,"社会保険料等の金額",null,null,null,null,null,null,null,null,null,null,null,null,null,null,null,null,null,null,null,null,null,null,null,null,null,"生命保険料の控除額",null,null,null,null,null,null,null,null,null,null,null,null,null,null,null,null,null,null,null,null,"地震保険料の控除額",null,null,null,null,null,null,null,null,null,null,null,null,null,null,null,null,null,null,"住宅借入金等特別控除の額"]
[]
[null,null,null,null,null,null,null,null,null,null,null,null,null,null,null,null,null,null,null,null,null,null,null,null,null,null,"円",null,"内",null,null,null,null,null,null,null,null,null,null,null,null,null,null,null,null,null,null,null,null,null,null,null,"円",null,null,null,null,null,null,null,null,null,null,null,null,null,null,null,null,null,null,null,null,"円",null,null,null,null,null,null,null,null,null,null,null,null,null,null,null,null,null,null,"円",null,null,null,null,null,null,null,null,null,null,null,null,null,null,null,null,null,null,null,null,"円"]
[]
[]
[null,null,null,"（摘要）"]
[]
[]
[]
[]
[]
[]
[]
[null,null,null,"生命保険料\nの金額の\n内訳",null,null,null,null,null,null,null,"新生命\n保険料\nの金額",null,null,null,null,null,null,null,null,null,null,null,null,null,null,null,null,null,null,"円",null,"旧生命\n保険料\nの金額",null,null,null,null,null,null,null,null,null,null,null,null,null,null,null,null,null,"円",null,"介護医療\n保険料\nの金額",null,null,null,null,null,null,null,null,null,null,null,null,null,null,null,null,null,"円",null,"新個人年金\n保険料\nの金額",null,null,null,null,null,null,null,null,null,null,null,null,null,null,null,null,null,"円",null,"旧個人年金\n保険料\nの金額",null,null,null,null,null,null,null,null,null,null,null,null,null,null,null,null,null,null,null,null,"円"]
[]
[null,null,null,"住宅借入金等特別控除の額の内訳",null,null,null,null,null,null,null,"住宅借入金\n等特別控除\n適用数",null,null,null,null,null,null,null,null,null,null,null,null,null,null,null,null,null,null,null,null,"居住開始年月\n日（1回目）",null,null,null,null,null,null,null,null,null,null,null,null,null,null,"年",null,null,null,null,null,null,"月",null,null,null,null,null,null,"日",null,"住宅借入金等\n特別控除区分\n（1回目）",null,null,null,null,null,null,null,null,null,null,null,null,null,null,null,null,"住宅借入金等\n年末残高\n（1回目）",null,null,null,null,null,null,null,null,null,null,null,null,null,null,null,null,null,null,null,null,null,null,null,null,null,null,null,null,null,null,null,null,"円"]
[]
[null,null,null,null,null,null,null,null,null,null,null,"住宅借入金\n等特別控除\n可能額",null,null,null,null,null,null,null,null,null,null,null,null,null,null,null,null,null,null,"円",null,"居住開始年月\n日（2回目）",null,null,null,null,null,null,null,null,null,null,null,null,null,null,"年",null,null,null,null,null,null,"月",null,null,null,null,null,null,"日",null,"住宅借入金等\n特別控除区分\n（2回目）",null,null,null,null,null,null,null,null,null,null,null,null,null,null,null,null,"住宅借入金等\n年末残高\n（2回目）",null,null,null,null,null,null,null,null,null,null,null,null,null,null,null,null,null,null,null,null,null,null,null,null,null,null,null,null,null,null,null,null,"円"]
[]
[null,null,null,"（源泉・特別）\n控除対象\n配偶者",null,null,null,null,null,null,"（フリガナ）",null,null,null,null,null,null,null,null,null,null,null,null,null,null,null,null,null,null,null,null,null,null,null,null,null,null,null,null,null,null,null,null,"区分",null,null,null,null,null,null,"配偶者の\n合計所得",null,null,null,null,null,null,null,null,null,null,null,null,null,null,null,null,null,null,"円",null,"国民年金保険\n料等の金額",null,null,null,null,null,null,null,null,null,null,null,null,null,null,null,"円",null,"旧長期損害\n保険料の金額",null,null,null,null,null,null,null,null,null,null,null,null,null,null,null,null,null,null,null,null,null,null,null,"円"]
[null,null,null,null,null,null,null,null,null,null,"氏　名"]
[null,null,null,null,null,null,null,null,null,null,null,null,null,null,null,null,null,null,null,null,null,null,null,null,null,null,null,null,null,null,null,null,null,null,null,null,null,null,null,null,null,null,null,null,null,null,null,null,null,null,null,null,null,null,null,null,null,null,null,null,null,null,null,null,null,null,null,null,null,null,null,"基礎控除の額",null,null,null,null,null,null,null,null,null,null,null,null,null,null,null,"円",null,"所得金額\n調整控除額",null,null,null,null,null,null,null,null,null,null,null,null,null,null,null,null,null,null,null,null,null,null,null,"円"]
[null,null,null,null,null,null,null,null,null,null,"個人番号"]
[null,null,null,"控除対象扶養親族等",null,null,null,1,null,null,"（フリガナ）",null,null,null,null,null,null,null,null,null,null,null,null,null,null,null,null,null,null,null,null,null,null,null,null,null,null,null,null,null,null,null,null,"区分",null,null,null,null,null,null,16,null,null,1,null,null,"（フリガナ）",null,null,null,null,null,null,null,null,null,null,null,null,null,null,null,null,null,null,null,null,null,null,null,null,null,null,null,null,null,null,null,null,"区分",null,null,null,null,null,null,"5人目以降の控除対象扶養\n親族等の個人番号"]
[null,null,null,null,null,null,null,null,null,null,"氏　名",null,null,null,null,null,null,null,null,null,null,null,null,null,null,null,null,null,null,null,null,null,null,null,null,null,null,null,null,null,null,null,null,null,null,null,null,null,null,null,null,null,null,null,null,null,"氏　名"]
[null,null,null,null,null,null,null,null,null,null,"個人番号",null,null,null,null,null,null,null,null,null,null,null,null,null,null,null,null,null,null,null,null,null,null,null,null,null,null,null,null,null,null,null,null,null,null,null,null,null,null,null,"歳未満の扶養親族",null,null,null,null,null,"個人番号"]
[null,null,null,null,null,null,null,2,null,null,"（フリガナ）",null,null,null,null,null,null,null,null,null,null,null,null,null,null,null,null,null,null,null,null,null,null,null,null,null,null,null,null,null,null,null,null,"区分",null,null,null,null,null,null,null,null,null,2,null,null,"（フリガナ）",null,null,null,null,null,null,null,null,null,null,null,null,null,null,null,null,null,null,null,null,null,null,null,null,null,null,null,null,null,null,null,null,"区分"]
[null,null,null,null,null,null,null,null,null,null,"氏　名",null,null,null,null,null,null,null,null,null,null,null,null,null,null,null,null,null,null,null,null,null,null,null,null,null,null,null,null,null,null,null,null,null,null,null,null,null,null,null,null,null,null,null,null,null,"氏　名"]
[null,null,null,null,null,null,null,null,null,null,"個人番号",null,null,null,null,null,null,null,null,null,null,null,null,null,null,null,null,null,null,null,null,null,null,null,null,null,null,null,null,null,null,null,null,null,null,null,null,null,null,null,null,null,null,null,null,null,"個人番号"]
[null,null,null,null,null,null,null,3,null,null,"（フリガナ）",null,null,null,null,null,null,null,null,null,null,null,null,null,null,null,null,null,null,null,null,null,null,null,null,null,null,null,null,null,null,null,null,"区分",null,null,null,null,null,null,null,null,null,3,null,null,"（フリガナ）",null,null,null,null,null,null,null,null,null,null,null,null,null,null,null,null,null,null,null,null,null,null,null,null,null,null,null,null,null,null,null,null,"区分",null,null,null,null,null,null,"5人目以降の16歳未満\nの扶養親族の個人番号"]
[null,null,null,null,null,null,null,null,null,null,"氏　名",null,null,null,null,null,null,null,null,null,null,null,null,null,null,null,null,null,null,null,null,null,null,null,null,null,null,null,null,null,null,null,null,null,null,null,null,null,null,null,null,null,null,null,null,null,"氏　名"]
[null,null,null,null,null,null,null,null,null,null,"個人番号",null,null,null,null,null,null,null,null,null,null,null,null,null,null,null,null,null,null,null,null,null,null,null,null,null,null,null,null,null,null,null,null,null,null,null,null,null,null,null,null,null,null,null,null,null,"個人番号"]
[null,null,null,null,null,null,null,4,null,null,"（フリガナ）",null,null,null,null,null,null,null,null,null,null,null,null,null,null,null,null,null,null,null,null,null,null,null,null,null,null,null,null,null,null,null,null,"区分",null,null,null,null,null,null,null,null,null,4,null,null,"（フリガナ）",null,null,null,null,null,null,null,null,null,null,null,null,null,null,null,null,null,null,null,null,null,null,null,null,null,null,null,null,null,null,null,null,"区分"]
[null,null,null,null,null,null,null,null,null,null,"氏　名",null,null,null,null,null,null,null,null,null,null,null,null,null,null,null,null,null,null,null,null,null,null,null,null,null,null,null,null,null,null,null,null,null,null,null,null,null,null,null,null,null,null,null,null,null,"氏　名"]
[null,null,null,null,null,null,null,null,null,null,"個人番号",null,null,null,null,null,null,null,null,null,null,null,null,null,null,null,null,null,null,null,null,null,null,null,null,null,null,null,null,null,null,null,null,null,null,null,null,null,null,null,null,null,null,null,null,null,"個人番号"]
[null,null,null,"未成年者",null,null,null,null,"外国人",null,null,null,"死亡退職",null,null,null,"災害者",null,null,null,"乙　欄",null,null,null,null,"本人が障害者",null,null,null,null,null,null,null,null,null,"寡婦",null,null,null,null,"ひとり親",null,null,null,null,null,"勤労学生",null,null,null,null,null,null,null,null,"中  途  就  ・  退  職",null,null,null,null,null,null,null,null,null,null,null,null,null,null,null,null,null,null,null,null,null,null,null,null,"受  給  者  生  年  月  日"]
[]
[]
[null,null,null,null,null,null,null,null,null,null,null,null,null,null,null,null,null,null,null,null,null,null,null,null,null,"特別",null,null,null,null,"その他"]
[]
[null,null,null,null,null,null,null,null,null,null,null,null,null,null,null,null,null,null,null,null,null,null,null,null,null,null,null,null,null,null,null,null,null,null,null,null,null,null,null,null,null,null,null,null,null,null,null,null,null,null,null,null,null,null,null,"就職",null,null,null,null,"退職",null,null,null,null,"年",null,null,null,null,"月",null,null,null,null,"日",null,null,null,null,"元号",null,null,null,null,null,null,null,null,null,null,null,null,null,null,null,null,null,null,null,"年",null,null,null,null,"月",null,null,null,null,"日"]
[]
[]
[]
[null,null,null,null,null,null,null,null,null,null,null,null,null,null,null,null,null,null,null,null,null,null,null,null,null,null,null,null,null,null,null,null,null,null,null,null,null,null,null,null,null,null,null,null,null,null,null,null,null,null,null,null,null,null,null,null,null,null,null,null,null,null,null,null,null,7]
[]
[]
[]
[null,"(市区町村提出用)",null,"支払者",null,null,null,null,"個人番号又は\n法人番号",null,null,null,null,null,null,null,null,null,null,null,null,null,null,null,null,null,null,null,null,null,null,null,null,null,null,null,null,null,null,null,null,null,null,null,null,null,null,null,null,null,null,null,null,"（支払者の法人番号13桁、個人事業主の場合は個人番号12桁を記載してください。）"]
[]
[null,null,null,null,null,null,null,null,"住所（居所）\n又は所在地"]
[]
[]
[null,null,null,null,null,null,null,null,"氏名又は名称"]
[null,null,null,null,null,null,null,null,null,null,null,null,null,null,null,null,null,null,null,null,null,null,null,null,null,null,null,null,null,null,null,null,null,null,null,null,null,null,null,null,null,null,null,null,null,null,null,null,null,null,null,null,null,null,null,null,null,null,null,null,null,null,null,null,null,null,null,null,null,null,null,null,null,null,null,null,null,null,null,null,null,null,null,null,null,null,null,"（電話）"]
[]
[]
[null,null,null,"（摘要）に前職分の加算額、支払者等を記入してください。"]
[]
[]
[]
[]
[]
[]
[]
[]
[]
[]
[]
[null,null,null,"令和7年分 　 給 与 所 得 の 源 泉 徴 収 票",null,null,null,null,null,null,null,null,null,null,null,null,null,null,null,null,null,null,null,null,null,null,null,null,null,null,null,null,null,null,null,null,null,null,null,null,null,null,null,null,null,null,null,null,null,null,null,null,null,null,null,null,null,null,null,null,null,null,null,null,null,null,null,null,null,null,null,null,null,null,null,null,null,null,null,null,null,null,null,null,null,null,null,null,null,null,null,null,null,null,null,null,null,null,null,null,null,null,null,null,null,null,null,null,null,null,null,null,null,null,null,null,null,null,null,null,null,null,null,null,null,null,"令和7年分 　 給 与 所 得 の 源 泉 徴 収 票"]
[]
[]
[]
[null,null,null,"支　払\n\nを受け\n\nる　者",null,null,null,null,null,"住所又は居所",null,null,null,{"$f":"N7","v":0},null,null,null,null,null,null,null,null,null,null,null,null,null,null,null,null,null,null,null,null,null,null,null,null,null,null,null,null,null,null,null,null,null,null,null,null,null,null,null,null,null,null,null,null,null,null,null,null,null,null,null,null,null,"（受給者番号）",null,null,null,null,null,null,null,null,null,null,null,{"$f":"CB6","v":0},null,null,null,null,null,null,null,null,null,null,null,null,null,null,null,null,null,null,null,null,null,null,null,null,null,null,null,null,null,null,null,null,null,null,null,null,null,null,null,null,null,null,null,null,null,null,"支　払\n\nを受け\n\nる　者",null,null,null,null,null,"住所又は居所",null,null,null,{"$f":"EG7","v":0},null,null,null,null,null,null,null,null,null,null,null,null,null,null,null,null,null,null,null,null,null,null,null,null,null,null,null,null,null,null,null,null,null,null,null,null,null,null,null,null,null,null,null,null,null,null,null,null,null,null,null,null,null,"（受給者番号）",null,null,null,null,null,null,null,null,null,null,null,{"$f":"GU6","v":0}]
[null,null,null,null,null,null,null,null,null,null,null,null,null,null,null,null,null,null,null,null,null,null,null,null,null,null,null,null,null,null,null,null,null,null,null,null,null,null,null,null,null,null,null,null,null,null,null,null,null,null,null,null,null,null,null,null,null,null,null,null,null,null,null,null,null,null,null,"（個人番号）",null,null,null,null,null,null,null,null,null,null,null,{"$f":"CB7","v":0},null,null,null,null,null,null,null,null,null,null,null,null,null,null,null,null,null,null,null,null,null,null,null,null,null,null,null,null,null,null,null,null,null,null,null,null,null,null,null,null,null,null,null,null,null,null,null,null,null,null,null,null,null,null,null,null,null,null,null,null,null,null,null,null,null,null,null,null,null,null,null,null,null,null,null,null,null,null,null,null,null,null,null,null,null,null,null,null,null,null,null,null,null,null,null,null,null,null,null,null,null,null,null,null,null,null,null,null,null,null,"（個人番号）",null,null,null,null,null,null,null,null,null,null,null,{"$f":"GU7","v":0}]
[null,null,null,null,null,null,null,null,null,null,null,null,null,null,null,null,null,null,null,null,null,null,null,null,null,null,null,null,null,null,null,null,null,null,null,null,null,null,null,null,null,null,null,null,null,null,null,null,null,null,null,null,null,null,null,null,null,null,null,null,null,null,null,null,null,null,null,"（役職名）",null,null,null,null,null,null,null,null,null,null,null,{"$f":"CB8","v":0},null,null,null,null,null,null,null,null,null,null,null,null,null,null,null,null,null,null,null,null,null,null,null,null,null,null,null,null,null,null,null,null,null,null,null,null,null,null,null,null,null,null,null,null,null,null,null,null,null,null,null,null,null,null,null,null,null,null,null,null,null,null,null,null,null,null,null,null,null,null,null,null,null,null,null,null,null,null,null,null,null,null,null,null,null,null,null,null,null,null,null,null,null,null,null,null,null,null,null,null,null,null,null,null,null,null,null,null,null,null,"（役職名）",null,null,null,null,null,null,null,null,null,null,null,{"$f":"GU8","v":0}]
[]
[null,null,null,null,null,null,null,null,null,null,null,null,null,null,null,null,null,null,null,null,null,null,null,null,null,null,null,null,null,null,null,null,null,null,null,null,null,null,null,null,null,null,null,null,null,null,null,null,null,null,null,null,null,null,null,null,null,null,null,null,null,null,null,null,null,null,null,"氏名",null,null,null,"（フリガナ）",null,null,null,null,null,null,{"$f":"CA10","v":0},null,null,null,null,null,null,null,null,null,null,null,null,null,null,null,null,null,null,null,null,null,null,null,null,null,null,null,null,null,null,null,null,null,null,null,null,null,null,null,null,null,null,null,null,null,null,null,null,null,null,null,null,null,null,null,null,null,null,null,null,null,null,null,null,null,null,null,null,null,null,null,null,null,null,null,null,null,null,null,null,null,null,null,null,null,null,null,null,null,null,null,null,null,null,null,null,null,null,null,null,null,null,null,null,null,null,null,null,null,null,null,"氏名",null,null,null,"（フリガナ）",null,null,null,null,null,null,{"$f":"GT10","v":0}]
[null,null,null,null,null,null,null,null,null,null,null,null,null,null,null,null,null,null,null,null,null,null,null,null,null,null,null,null,null,null,null,null,null,null,null,null,null,null,null,null,null,null,null,null,null,null,null,null,null,null,null,null,null,null,null,null,null,null,null,null,null,null,null,null,null,null,null,null,null,null,null,null,null,null,null,null,null,{"$f":"$BZ$11","v":0},null,null,null,null,null,null,null,null,null,null,null,null,null,null,null,null,null,null,null,null,null,null,null,null,null,null,null,null,null,null,null,null,null,null,null,null,null,null,null,null,null,null,null,null,null,null,null,null,null,null,null,null,null,null,null,null,null,null,null,null,null,null,null,null,null,null,null,null,null,null,null,null,null,null,null,null,null,null,null,null,null,null,null,null,null,null,null,null,null,null,null,null,null,null,null,null,null,null,null,null,null,null,null,null,null,null,null,null,null,null,null,null,null,null,null,null,null,null,null,null,null,null,{"$f":"$BZ$11","v":0}]
[]
[null,null,null,"種　　　　　　　　　　別",null,null,null,null,null,null,null,null,null,null,null,null,null,null,null,null,null,null,null,null,null,"支　　　払　　　金　　　額",null,null,null,null,null,null,null,null,null,null,null,null,null,null,null,null,null,null,null,null,null,null,null,null,"給与所得控除後の金額\n（調整控除後）",null,null,null,null,null,null,null,null,null,null,null,null,null,null,null,null,null,null,null,null,null,null,"所得控除の額の合計額",null,null,null,null,null,null,null,null,null,null,null,null,null,null,null,null,null,null,null,"源　泉　徴　収　税　額",null,null,null,null,null,null,null,null,null,null,null,null,null,null,null,null,null,null,null,null,null,null,null,null,null,null,null,null,null,null,null,null,"種　　　　　　　　　　別",null,null,null,null,null,null,null,null,null,null,null,null,null,null,null,null,null,null,null,null,null,"支　　　払　　　金　　　額",null,null,null,null,null,null,null,null,null,null,null,null,null,null,null,null,null,null,null,null,null,null,null,null,"給与所得控除後の金額\n（調整控除後）",null,null,null,null,null,null,null,null,null,null,null,null,null,null,null,null,null,null,null,null,null,null,"所得控除の額の合計額",null,null,null,null,null,null,null,null,null,null,null,null,null,null,null,null,null,null,null,"源　泉　徴　収　税　額"]
[]
[null,null,null,{"$f":"$D$15","v":0},null,null,null,null,null,null,null,null,null,null,null,null,null,null,null,null,null,null,null,null,null,"内",null,null,null,null,{"$f":"$AE$15","v":0},null,null,null,null,null,null,null,null,null,null,null,null,null,null,null,"円",null,null,null,null,null,null,null,null,null,null,null,null,null,null,null,null,null,null,null,null,null,null,"円",null,null,null,null,null,null,null,null,null,null,null,null,null,null,null,null,null,null,null,null,null,"円",null,"内",null,null,{"$f":"$CS$15","v":0},null,null,null,null,null,null,null,null,null,null,null,null,null,null,null,null,"円",null,null,null,null,null,null,null,null,null,null,null,null,{"$f":"$D$15","v":0},null,null,null,null,null,null,null,null,null,null,null,null,null,null,null,null,null,null,null,null,null,"内",null,null,null,null,{"$f":"$AE$15","v":0},null,null,null,null,null,null,null,null,null,null,null,null,null,null,null,"円",null,null,null,null,null,null,null,null,null,null,null,null,null,null,null,null,null,null,null,null,null,null,"円",null,null,null,null,null,null,null,null,null,null,null,null,null,null,null,null,null,null,null,null,null,"円",null,"内",null,null,{"$f":"$CS$15","v":0},null,null,null,null,null,null,null,null,null,null,null,null,null,null,null,null,"円"]
[null,null,null,null,null,null,null,null,null,null,null,null,null,null,null,null,null,null,null,null,null,null,null,null,null,null,null,{"$f":"$AB$16","v":0},null,null,null,null,null,null,null,null,null,null,null,null,null,null,null,null,null,null,null,null,null,null,{"$f":"$AY$16","v":0},null,null,null,null,null,null,null,null,null,null,null,null,null,null,null,null,null,null,null,null,null,{"$f":"$BU$16","v":0},null,null,null,null,null,null,null,null,null,null,null,null,null,null,null,null,null,null,null,null,null,null,{"$f":"$CR$16","v":0},null,null,null,null,null,null,null,null,null,null,null,null,null,null,null,null,null,null,null,null,null,null,null,null,null,null,null,null,null,null,null,null,null,null,null,null,null,null,null,null,null,null,null,null,null,null,null,null,null,null,null,null,null,null,{"$f":"$AB$16","v":0},null,null,null,null,null,null,null,null,null,null,null,null,null,null,null,null,null,null,null,null,null,null,{"$f":"$AY$16","v":0},null,null,null,null,null,null,null,null,null,null,null,null,null,null,null,null,null,null,null,null,null,{"$f":"$BU$16","v":0},null,null,null,null,null,null,null,null,null,null,null,null,null,null,null,null,null,null,null,null,null,null,{"$f":"$CR$16","v":0}]
[]
[null,null,null,null,null,null,null,null,null,null,null,null,null,null,null,null,null,null,"配偶者（特別）\n控除の額",null,null,null,null,null,null,null,null,null,null,null,null,null,null,null,null,null,null,null,"控 除 対 象 扶 養 親 族 等 の 数",null,null,null,null,null,null,null,null,null,null,null,null,null,null,null,null,null,null,null,null,null,null,null,null,null,null,null,null,null,null,null,null,null,null,null,null,null,null,null,null,null,null,null,null,null,null,"１６歳未満扶養親族の数",null,null,null,null,null,"障 害 者 の 数",null,null,null,null,null,null,null,null,null,null,null,null,null,null,null,null,"非居住者\nである\n親族の数",null,null,null,null,null,null,null,null,null,null,null,null,null,null,null,null,null,null,null,null,null,null,null,null,null,null,null,null,null,null,null,null,"配偶者（特別）\n控除の額",null,null,null,null,null,null,null,null,null,null,null,null,null,null,null,null,null,null,null,"控 除 対 象 扶 養 親 族 等 の 数",null,null,null,null,null,null,null,null,null,null,null,null,null,null,null,null,null,null,null,null,null,null,null,null,null,null,null,null,null,null,null,null,null,null,null,null,null,null,null,null,null,null,null,null,null,null,"１６歳未満扶養親族の数",null,null,null,null,null,"障 害 者 の 数",null,null,null,null,null,null,null,null,null,null,null,null,null,null,null,null,"非居住者\nである\n親族の数"]
[null,null,null,"（源泉）控除対象配偶者",null,null,null,null,null,null,null,null,null,null,null,null,null,null,null,null,null,null,null,null,null,null,null,null,null,null,null,null,null,null,null,null,null,null,null,null,null,null,null,null,null,null,null,null,null,null,null,null,null,null,null,null,null,null,null,null,null,null,null,null,null,null,null,null,null,null,null,null,null,null,null,null,null,null,null,null,null,null,null,null,null,null,null,null,null,null,null,null,null,null,null,null,null,null,null,null,null,null,null,null,null,null,null,null,null,null,null,null,null,null,null,null,null,null,null,null,null,null,null,null,null,null,"（源泉）控除対象配偶者"]
[null,null,null,null,null,null,null,null,null,null,null,null,null,null,null,null,null,null,null,null,null,null,null,null,null,null,null,null,null,null,null,null,null,null,null,null,null,null,"（配偶者を除く。）",null,null,null,null,null,null,null,null,null,null,null,null,null,null,null,null,null,null,null,null,null,null,null,null,null,null,null,null,null,null,null,null,null,null,null,null,null,null,null,null,null,null,null,null,null,null,null,null,null,null,null,null,"（本人を除く。）",null,null,null,null,null,null,null,null,null,null,null,null,null,null,null,null,null,null,null,null,null,null,null,null,null,null,null,null,null,null,null,null,null,null,null,null,null,null,null,null,null,null,null,null,null,null,null,null,null,null,null,null,null,null,null,null,null,null,null,null,null,null,null,null,null,null,null,null,null,"（配偶者を除く。）",null,null,null,null,null,null,null,null,null,null,null,null,null,null,null,null,null,null,null,null,null,null,null,null,null,null,null,null,null,null,null,null,null,null,null,null,null,null,null,null,null,null,null,null,null,null,null,null,null,null,null,null,"（本人を除く。）"]
[null,null,null,"の有無等",null,null,null,null,null,null,null,null,null,null,null,"老人",null,null,null,null,null,null,null,null,null,null,null,null,null,null,null,null,null,null,null,null,null,null,null,null,null,null,null,null,null,null,null,null,null,null,null,null,null,null,null,null,null,null,null,null,null,null,null,null,null,null,null,null,null,null,null,null,null,null,null,null,null,null,null,null,null,null,null,null,null,null,null,null,null,null,null,null,null,null,null,null,null,null,null,null,null,null,null,null,null,null,null,null,null,null,null,null,null,null,null,null,null,null,null,null,null,null,null,null,null,null,"の有無等",null,null,null,null,null,null,null,null,null,null,null,"老人"]
[null,null,null,null,null,null,null,null,null,null,null,null,null,null,null,null,null,null,null,null,null,null,null,null,null,null,null,null,null,null,null,null,null,null,null,null,null,null,"特定",null,null,null,null,null,null,null,null,null,null,"老　人",null,null,null,null,null,null,null,null,null,null,null,null,null,null,null,"そ の 他",null,null,null,null,null,null,null,null,null,"特　親",null,null,null,null,null,null,null,null,null,null,null,null,null,null,null,"特　別",null,null,null,null,null,null,null,null,null,"その他",null,null,null,null,null,null,null,null,null,null,null,null,null,null,null,null,null,null,null,null,null,null,null,null,null,null,null,null,null,null,null,null,null,null,null,null,null,null,null,null,null,null,null,null,null,null,null,null,null,null,null,null,null,null,null,null,null,null,null,"特定",null,null,null,null,null,null,null,null,null,null,"老　人",null,null,null,null,null,null,null,null,null,null,null,null,null,null,null,"そ の 他",null,null,null,null,null,null,null,null,null,"特　親",null,null,null,null,null,null,null,null,null,null,null,null,null,null,null,"特　別",null,null,null,null,null,null,null,null,null,"その他"]
[]
[null,null,null,"有",null,null,null,null,null,"従有",null,null,null,null,null,null,null,null,{"$f":"S24","v":0},null,null,null,null,null,null,null,null,null,null,null,null,null,null,null,null,null,"円",null,{"$f":"$AM$24","v":0},null,null,null,null,"人",null,"従人",null,null,null,"内",null,null,null,null,null,{"$f":"$BD$24","v":0},null,null,null,"人",null,"従人",null,null,null,{"$f":"$BN$24","v":0},null,null,null,"人",null,"従人",null,null,null,{"$f":"$BX$24","v":0},null,null,null,"人",null,"従人",null,null,null,{"$f":"$CH$24","v":0},null,null,null,"人",null,{"$f":"$CN$24","v":0},null,null,"内",null,{"$f":"$CS$24","v":0},null,null,"人",null,{"$f":"$CX$24","v":0},null,null,null,null,"人",null,{"$f":"$DE$24","v":0},null,null,null,null,"人",null,null,null,null,null,null,null,null,null,null,null,null,"有",null,null,null,null,null,"従有",null,null,null,null,null,null,null,null,{"$f":"$S$24","v":0},null,null,null,null,null,null,null,null,null,null,null,null,null,null,null,null,null,"円",null,{"$f":"$AM$24","v":0},null,null,null,null,"人",null,"従人",null,null,null,"内",null,null,null,null,null,{"$f":"$BD$24","v":0},null,null,null,"人",null,"従人",null,null,null,{"$f":"$BN$24","v":0},null,null,null,"人",null,"従人",null,null,null,{"$f":"$BX$24","v":0},null,null,null,"人",null,"従人",null,null,null,{"$f":"$CH$24","v":0},null,null,null,"人",null,{"$f":"$CN$24","v":0},null,null,"内",null,{"$f":"$CS$24","v":0},null,null,"人",null,{"$f":"$CX$24","v":0},null,null,null,null,"人",null,{"$f":"$DE$24","v":0},null,null,null,null,"人"]
[null,null,null,{"$f":"$D$25","v":0},null,null,null,null,null,{"$f":"$J$25","v":0},null,null,null,null,null,{"$f":"$P$25","v":0},null,null,null,null,null,null,null,null,null,null,null,null,null,null,null,null,null,null,null,null,null,null,null,null,null,null,null,null,null,{"$f":"$AT$25","v":0},null,null,null,{"$f":"$AX$25","v":0},null,null,null,null,null,null,null,null,null,null,null,{"$f":"$BJ$25","v":0},null,null,null,null,null,null,null,null,null,{"$f":"$BT$25","v":0},null,null,null,null,null,null,null,null,null,{"$f":"$CD$25","v":0},null,null,null,null,null,null,null,null,null,null,null,null,null,null,null,null,null,null,null,null,null,null,null,null,null,null,null,null,null,null,null,null,null,null,null,null,null,null,null,null,null,null,null,null,{"$f":"$D$25","v":0},null,null,null,null,null,{"$f":"$J$25","v":0},null,null,null,null,null,{"$f":"$P$25","v":0},null,null,null,null,null,null,null,null,null,null,null,null,null,null,null,null,null,null,null,null,null,null,null,null,null,null,null,null,null,{"$f":"$AT$25","v":0},null,null,null,{"$f":"$AX$25","v":0},null,null,null,null,null,null,null,null,null,null,null,{"$f":"$BJ$25","v":0},null,null,null,null,null,null,null,null,null,{"$f":"$BT$25","v":0},null,null,null,null,null,null,null,null,null,{"$f":"$CD$25","v":0}]
[]
[]
[null,null,null,"特定親族特別控除の額",null,null,null,null,null,null,null,null,null,null,null,null,null,null,null,null,null,null,null,null,null,null,null,null,"社会保険料等の金額",null,null,null,null,null,null,null,null,null,null,null,null,null,null,null,null,null,null,null,null,null,null,null,null,null,"生命保険料の控除額",null,null,null,null,null,null,null,null,null,null,null,null,null,null,null,null,null,null,null,null,"地震保険料の控除額",null,null,null,null,null,null,null,null,null,null,null,null,null,null,null,null,null,null,"住宅借入金等特別控除の額",null,null,null,null,null,null,null,null,null,null,null,null,null,null,null,null,null,null,null,null,null,null,null,null,null,null,null,null,null,null,null,"特定親族特別控除の額",null,null,null,null,null,null,null,null,null,null,null,null,null,null,null,null,null,null,null,null,null,null,null,null,"社会保険料等の金額",null,null,null,null,null,null,null,null,null,null,null,null,null,null,null,null,null,null,null,null,null,null,null,null,null,"生命保険料の控除額",null,null,null,null,null,null,null,null,null,null,null,null,null,null,null,null,null,null,null,null,"地震保険料の控除額",null,null,null,null,null,null,null,null,null,null,null,null,null,null,null,null,null,null,"住宅借入金等特別控除の額"]
[]
[null,null,null,{"$f":"$D$30","v":0},null,null,null,null,null,null,null,null,null,null,null,null,null,null,null,null,null,null,null,null,null,null,"円",null,"内",null,{"$f":"$AE$30","v":0},null,null,null,null,null,null,null,null,null,null,null,null,null,null,null,null,null,null,null,null,null,"円",null,{"$f":"$BC$30","v":0},null,null,null,null,null,null,null,null,null,null,null,null,null,null,null,null,null,null,"円",null,{"$f":"$BX$30","v":0},null,null,null,null,null,null,null,null,null,null,null,null,null,null,null,null,"円",null,{"$f":"$CQ$30","v":0},null,null,null,null,null,null,null,null,null,null,null,null,null,null,null,null,null,null,"円",null,null,null,null,null,null,null,null,null,null,null,null,{"$f":"$D$30","v":0},null,null,null,null,null,null,null,null,null,null,null,null,null,null,null,null,null,null,null,null,null,null,"円",null,"内",null,{"$f":"$AE$30","v":0},null,null,null,null,null,null,null,null,null,null,null,null,null,null,null,null,null,null,null,null,null,"円",null,{"$f":"$BC$30","v":0},null,null,null,null,null,null,null,null,null,null,null,null,null,null,null,null,null,null,"円",null,{"$f":"$BX$30","v":0},null,null,null,null,null,null,null,null,null,null,null,null,null,null,null,null,"円",null,{"$f":"$CQ$30","v":0},null,null,null,null,null,null,null,null,null,null,null,null,null,null,null,null,null,null,"円"]
[null,null,null,null,null,null,null,null,null,null,null,null,null,null,null,null,null,null,null,null,null,null,null,null,null,null,null,null,null,null,{"$f":"AE31","v":0},null,null,null,null,null,null,null,null,null,null,null,null,null,null,null,null,null,null,null,null,null,null,null,null,null,null,null,null,null,null,null,null,null,null,null,null,null,null,null,null,null,null,null,null,null,null,null,null,null,null,null,null,null,null,null,null,null,null,null,null,null,null,null,null,null,null,null,null,null,null,null,null,null,null,null,null,null,null,null,null,null,null,null,null,null,null,null,null,null,null,null,null,null,null,null,null,null,null,null,null,null,null,null,null,null,null,null,null,null,null,null,null,null,null,null,null,null,null,null,null,null,null,{"$f":"$AE$31","v":0}]
[]
[null,null,null,"（摘要）",null,null,null,null,null,null,null,null,null,null,null,null,null,null,null,null,null,null,null,null,null,null,null,null,null,null,null,null,null,null,null,null,null,null,null,null,null,null,null,null,null,null,null,null,null,null,null,null,null,null,null,null,null,null,null,null,null,null,null,null,null,null,null,null,null,null,null,null,null,null,null,null,null,null,null,null,null,null,null,null,null,null,null,null,null,null,null,null,null,null,null,null,null,null,null,null,null,null,null,null,null,null,null,null,null,null,null,null,null,null,null,null,null,null,null,null,null,null,null,null,null,null,"（摘要）"]
[null,null,null,null,null,{"$f":"$F$34","v":0},null,null,null,null,null,null,null,null,null,null,null,null,null,null,null,null,null,null,null,null,null,null,null,null,null,null,null,null,null,null,null,null,null,null,null,null,null,null,null,null,null,null,null,null,null,null,null,null,null,null,null,null,null,null,null,null,null,null,null,null,null,null,null,null,null,null,null,null,null,null,null,null,null,null,null,null,null,null,null,null,null,null,null,null,null,null,null,null,null,null,null,null,null,null,null,null,null,null,null,null,null,null,null,null,null,null,null,null,null,null,null,null,null,null,null,null,null,null,null,null,null,null,{"$f":"$F$34","v":0}]
[]
[]
[null,null,null,null,null,{"$f":"$F$37","v":0},null,null,null,null,null,null,null,null,null,null,null,null,null,null,null,null,null,null,null,null,null,null,null,null,null,null,null,null,null,null,null,null,null,null,null,null,null,null,null,null,null,null,null,null,null,null,null,null,null,null,null,null,null,null,null,null,null,null,null,null,null,null,null,null,null,null,null,null,null,null,null,null,null,null,null,null,null,null,null,null,null,null,null,null,null,null,null,null,null,null,null,null,null,null,null,null,null,null,null,null,null,null,null,null,null,null,null,null,null,null,null,null,null,null,null,null,null,null,null,null,null,null,{"$f":"$F$37","v":0}]
[]
[]
[]
[null,null,null,"生命保険料\nの金額の\n内訳",null,null,null,null,null,null,null,"新生命\n保険料\nの金額",null,null,null,null,null,null,null,null,null,{"$f":"$V$41","v":0},null,null,null,null,null,null,null,null,"円",null,"旧生命\n保険料\nの金額",null,null,null,null,null,null,null,null,{"$f":"$AP$41","v":0},null,null,null,null,null,null,null,null,"円",null,"介護医療\n保険料\nの金額",null,null,null,null,null,null,null,null,{"$f":"$BJ$41","v":0},null,null,null,null,null,null,null,null,"円",null,"新個人年金\n保険料\nの金額",null,null,null,null,null,null,null,{"$f":"$CC$41","v":0},null,null,null,null,null,null,null,null,null,"円",null,"旧個人年金\n保険料\nの金額",null,null,null,null,null,null,null,{"$f":"$CW$41","v":0},null,null,null,null,null,null,null,null,null,null,null,null,"円",null,null,null,null,null,null,null,null,null,null,null,null,"生命保険料\nの金額の\n内訳",null,null,null,null,null,null,null,"新生命\n保険料\nの金額",null,null,null,null,null,null,null,null,null,{"$f":"$V$41","v":0},null,null,null,null,null,null,null,null,"円",null,"旧生命\n保険料\nの金額",null,null,null,null,null,null,null,null,{"$f":"$AP$41","v":0},null,null,null,null,null,null,null,null,"円",null,"介護医療\n保険料\nの金額",null,null,null,null,null,null,null,null,{"$f":"$BJ$41","v":0},null,null,null,null,null,null,null,null,"円",null,"新個人年金\n保険料\nの金額",null,null,null,null,null,null,null,{"$f":"$CC$41","v":0},null,null,null,null,null,null,null,null,null,"円",null,"旧個人年金\n保険料\nの金額",null,null,null,null,null,null,null,{"$f":"$CW$41","v":0},null,null,null,null,null,null,null,null,null,null,null,null,"円"]
[]
[null,null,null,"住宅借入金等特別控除の額の内訳",null,null,null,null,null,null,null,"住宅借入金\n等特別控除\n適用数",null,null,null,null,null,null,null,null,null,{"$f":"$V$43","v":0},null,null,null,null,null,null,null,null,null,null,"居住開始年月\n日（1回目）",null,null,null,null,null,null,null,null,{"$f":"$AP$43","v":0},null,null,null,null,null,"年",null,{"$f":"$AX$43","v":0},null,null,null,null,"月",null,{"$f":"$BE$43","v":0},null,null,null,null,"日",null,"住宅借入金等\n特別控除区分\n（1回目）",null,null,null,null,null,null,null,null,null,{"$f":"$BV$43","v":0},null,null,null,null,null,null,"住宅借入金等\n年末残高\n（1回目）",null,null,null,null,null,null,null,null,{"$f":"$CL$43","v":0},null,null,null,null,null,null,null,null,null,null,null,null,null,null,null,null,null,null,null,null,null,null,null,"円",null,null,null,null,null,null,null,null,null,null,null,null,"住宅借入金等特別控除の額の内訳",null,null,null,null,null,null,null,"住宅借入金\n等特別控除\n適用数",null,null,null,null,null,null,null,null,null,{"$f":"$V$43","v":0},null,null,null,null,null,null,null,null,null,null,"居住開始年月\n日（1回目）",null,null,null,null,null,null,null,null,{"$f":"$AP$43","v":0},null,null,null,null,null,"年",null,{"$f":"$AX$43","v":0},null,null,null,null,"月",null,{"$f":"$BE$43","v":0},null,null,null,null,"日",null,"住宅借入金等\n特別控除区分\n（1回目）",null,null,null,null,null,null,null,null,null,{"$f":"$BV$43","v":0},null,null,null,null,null,null,"住宅借入金等\n年末残高\n（1回目）",null,null,null,null,null,null,null,null,{"$f":"$CL$43","v":0},null,null,null,null,null,null,null,null,null,null,null,null,null,null,null,null,null,null,null,null,null,null,null,"円"]
[]
[null,null,null,null,null,null,null,null,null,null,null,"住宅借入金\n等特別控除\n可能額",null,null,null,null,null,null,null,null,null,{"$f":"$V$45","v":0},null,null,null,null,null,null,null,null,"円",null,"居住開始年月\n日（2回目）",null,null,null,null,null,null,null,null,{"$f":"$AP$45","v":0},null,null,null,null,null,"年",null,{"$f":"$AX$45","v":0},null,null,null,null,"月",null,{"$f":"$BE$45","v":0},null,null,null,null,"日",null,"住宅借入金等\n特別控除区分\n（2回目）",null,null,null,null,null,null,null,null,null,{"$f":"$BV$45","v":0},null,null,null,null,null,null,"住宅借入金等\n年末残高\n（2回目）",null,null,null,null,null,null,null,null,{"$f":"$CL$45","v":0},null,null,null,null,null,null,null,null,null,null,null,null,null,null,null,null,null,null,null,null,null,null,null,"円",null,null,null,null,null,null,null,null,null,null,null,null,null,null,null,null,null,null,null,null,"住宅借入金\n等特別控除\n可能額",null,null,null,null,null,null,null,null,null,{"$f":"$V$45","v":0},null,null,null,null,null,null,null,null,"円",null,"居住開始年月\n日（2回目）",null,null,null,null,null,null,null,null,{"$f":"$AP$45","v":0},null,null,null,null,null,"年",null,{"$f":"$AX$45","v":0},null,null,null,null,"月",null,{"$f":"$BE$45","v":0},null,null,null,null,"日",null,"住宅借入金等\n特別控除区分\n（2回目）",null,null,null,null,null,null,null,null,null,{"$f":"$BV$45","v":0},null,null,null,null,null,null,"住宅借入金等\n年末残高\n（2回目）",null,null,null,null,null,null,null,null,{"$f":"$CL$45","v":0},null,null,null,null,null,null,null,null,null,null,null,null,null,null,null,null,null,null,null,null,null,null,null,"円"]
[]
[null,null,null,"（源泉・特別）\n控除対象\n配偶者",null,null,null,null,null,null,"（フリガナ）",null,null,null,null,null,null,null,null,null,{"$f":"$U$47","v":0},null,null,null,null,null,null,null,null,null,null,null,null,null,null,null,null,null,null,null,null,null,null,"区分",null,{"$f":"$AT$47","v":0},null,null,null,null,"配偶者の\n合計所得",null,null,null,null,null,null,null,null,null,{"$f":"$BI$47","v":0},null,null,null,null,null,null,null,null,"円",null,"国民年金保険\n料等の金額",null,null,null,null,null,null,null,{"$f":"$CB$47","v":0},null,null,null,null,null,null,null,"円",null,"旧長期損害\n保険料の金額",null,null,null,null,null,null,null,null,{"$f":"$CU$47","v":0},null,null,null,null,null,null,null,null,null,null,null,null,null,null,"円",null,null,null,null,null,null,null,null,null,null,null,null,"（源泉・特別）\n控除対象\n配偶者",null,null,null,null,null,null,"（フリガナ）",null,null,null,null,null,null,null,null,null,{"$f":"$U$47","v":0},null,null,null,null,null,null,null,null,null,null,null,null,null,null,null,null,null,null,null,null,null,null,"区分",null,{"$f":"$AT$47","v":0},null,null,null,null,"配偶者の\n合計所得",null,null,null,null,null,null,null,null,null,{"$f":"$BI$47","v":0},null,null,null,null,null,null,null,null,"円",null,"国民年金保険\n料等の金額",null,null,null,null,null,null,null,{"$f":"$CB$47","v":0},null,null,null,null,null,null,null,"円",null,"旧長期損害\n保険料の金額",null,null,null,null,null,null,null,null,{"$f":"$CU$47","v":0},null,null,null,null,null,null,null,null,null,null,null,null,null,null,"円"]
[null,null,null,null,null,null,null,null,null,null,"氏　名",null,null,null,null,null,null,null,null,null,{"$f":"$U$48","v":0},null,null,null,null,null,null,null,null,null,null,null,null,null,null,null,null,null,null,null,null,null,null,null,null,null,null,null,null,null,null,null,null,null,null,null,null,null,null,null,null,null,null,null,null,null,null,null,null,null,null,null,null,null,null,null,null,null,null,null,null,null,null,null,null,null,null,null,null,null,null,null,null,null,null,null,null,null,null,null,null,null,null,null,null,null,null,null,null,null,null,null,null,null,null,null,null,null,null,null,null,null,null,null,null,null,null,null,null,null,null,null,null,"氏　名",null,null,null,null,null,null,null,null,null,{"$f":"$U$48","v":0}]
[null,null,null,null,null,null,null,null,null,null,null,null,null,null,null,null,null,null,null,null,null,null,null,null,null,null,null,null,null,null,null,null,null,null,null,null,null,null,null,null,null,null,null,null,null,null,null,null,null,null,null,null,null,null,null,null,null,null,null,null,null,null,null,null,null,null,null,null,null,null,null,"基礎控除の額",null,null,null,null,null,null,null,{"$f":"$CB$49","v":0},null,null,null,null,null,null,null,"円",null,"所得金額\n調整控除額",null,null,null,null,null,null,null,null,{"$f":"$CU$49","v":0},null,null,null,null,null,null,null,null,null,null,null,null,null,null,"円",null,null,null,null,null,null,null,null,null,null,null,null,null,null,null,null,null,null,null,null,null,null,null,null,null,null,null,null,null,null,null,null,null,null,null,null,null,null,null,null,null,null,null,null,null,null,null,null,null,null,null,null,null,null,null,null,null,null,null,null,null,null,null,null,null,null,null,null,null,null,null,null,null,null,null,null,null,null,null,null,"基礎控除の額",null,null,null,null,null,null,null,{"$f":"$CB$49","v":0},null,null,null,null,null,null,null,"円",null,"所得金額\n調整控除額",null,null,null,null,null,null,null,null,{"$f":"$CU$49","v":0},null,null,null,null,null,null,null,null,null,null,null,null,null,null,"円"]
[null,null,null,null,null,null,null,null,null,null,"個人番号",null,null,null,null,null,null,null,null,null,{"$f":"$U$50","v":0},null,null,null,null,null,null,null,null,null,null,null,null,null,null,null,null,null,null,null,null,null,null,null,null,null,null,null,null,null,null,null,null,null,null,null,null,null,null,null,null,null,null,null,null,null,null,null,null,null,null,null,null,null,null,null,null,null,null,null,null,null,null,null,null,null,null,null,null,null,null,null,null,null,null,null,null,null,null,null,null,null,null,null,null,null,null,null,null,null,null,null,null,null,null,null,null,null,null,null,null,null,null,null,null,null,null,null,null,null,null,null,null,"個人番号"]
[null,null,null,"控除対象扶養親族等",null,null,null,1,null,null,"（フリガナ）",null,null,null,null,null,null,null,null,null,{"$f":"$U$51","v":0},null,null,null,null,null,null,null,null,null,null,null,null,null,null,null,null,null,null,null,null,null,null,"区分",null,{"$f":"$AT$51","v":0},null,null,null,null,16,null,null,1,null,null,"（フリガナ）",null,null,null,null,null,null,null,null,null,{"$f":"$BO$51","v":0},null,null,null,null,null,null,null,null,null,null,null,null,null,null,null,null,null,null,null,null,null,null,"区分",null,{"$f":"$CN$51","v":0},null,null,null,null,"（備考）",null,null,null,null,null,null,null,null,null,null,null,null,null,null,null,null,null,null,null,null,null,null,null,null,null,null,null,null,null,"控除対象扶養親族等",null,null,null,1,null,null,"（フリガナ）",null,null,null,null,null,null,null,null,null,{"$f":"$U$51","v":0},null,null,null,null,null,null,null,null,null,null,null,null,null,null,null,null,null,null,null,null,null,null,"区分",null,{"$f":"$AT$51","v":0},null,null,null,null,16,null,null,1,null,null,"（フリガナ）",null,null,null,null,null,null,null,null,null,{"$f":"$BO$51","v":0},null,null,null,null,null,null,null,null,null,null,null,null,null,null,null,null,null,null,null,null,null,null,"区分",null,{"$f":"$CN$51","v":0},null,null,null,null,"（備考）"]
[null,null,null,null,null,null,null,null,null,null,"氏　名",null,null,null,null,null,null,null,null,null,{"$f":"$U$52","v":0},null,null,null,null,null,null,null,null,null,null,null,null,null,null,null,null,null,null,null,null,null,null,null,null,null,null,null,null,null,null,null,null,null,null,null,"氏　名",null,null,null,null,null,null,null,null,null,{"$f":"$BO$52","v":0},null,null,null,null,null,null,null,null,null,null,null,null,null,null,null,null,null,null,null,null,null,null,null,null,null,null,null,null,null,null,null,null,null,null,null,null,null,null,null,null,null,null,null,null,null,null,null,null,null,null,null,null,null,null,null,null,null,null,null,null,null,null,null,null,null,null,"氏　名",null,null,null,null,null,null,null,null,null,{"$f":"$U$52","v":0},null,null,null,null,null,null,null,null,null,null,null,null,null,null,null,null,null,null,null,null,null,null,null,null,null,null,null,null,null,null,null,null,null,null,null,"氏　名",null,null,null,null,null,null,null,null,null,{"$f":"$BO$52","v":0}]
[null,null,null,null,null,null,null,null,null,null,"個人番号",null,null,null,null,null,null,null,null,null,{"$f":"$U$53","v":0},null,null,null,null,null,null,null,null,null,null,null,null,null,null,null,null,null,null,null,null,null,null,null,null,null,null,null,null,null,"歳未満の扶養親族",null,null,null,null,null,"個人番号",null,null,null,null,null,null,null,null,null,null,null,null,null,null,null,null,null,null,null,null,null,null,null,null,null,null,null,null,null,null,null,null,null,null,null,null,null,null,null,null,null,null,null,null,null,null,null,null,null,null,null,null,null,null,null,null,null,null,null,null,null,null,null,null,null,null,null,null,null,null,null,null,null,null,null,null,"個人番号",null,null,null,null,null,null,null,null,null,null,null,null,null,null,null,null,null,null,null,null,null,null,null,null,null,null,null,null,null,null,null,null,null,null,null,null,null,null,null,"歳未満の扶養親族",null,null,null,null,null,"個人番号"]
[null,null,null,null,null,null,null,2,null,null,"（フリガナ）",null,null,null,null,null,null,null,null,null,{"$f":"$U$54","v":0},null,null,null,null,null,null,null,null,null,null,null,null,null,null,null,null,null,null,null,null,null,null,"区分",null,{"$f":"$AT$54","v":0},null,null,null,null,null,null,null,2,null,null,"（フリガナ）",null,null,null,null,null,null,null,null,null,{"$f":"$BO$54","v":0},null,null,null,null,null,null,null,null,null,null,null,null,null,null,null,null,null,null,null,null,null,null,"区分",null,{"$f":"$CN$54","v":0},null,null,null,null,null,null,null,null,null,null,null,null,null,null,null,null,null,null,null,null,null,null,null,null,null,null,null,null,null,null,null,null,null,null,null,null,null,null,2,null,null,"（フリガナ）",null,null,null,null,null,null,null,null,null,{"$f":"$U$54","v":0},null,null,null,null,null,null,null,null,null,null,null,null,null,null,null,null,null,null,null,null,null,null,"区分",null,{"$f":"$AT$54","v":0},null,null,null,null,null,null,null,2,null,null,"（フリガナ）",null,null,null,null,null,null,null,null,null,{"$f":"$BO$54","v":0},null,null,null,null,null,null,null,null,null,null,null,null,null,null,null,null,null,null,null,null,null,null,"区分",null,{"$f":"$CN$54","v":0}]
[null,null,null,null,null,null,null,null,null,null,"氏　名",null,null,null,null,null,null,null,null,null,{"$f":"$U$55","v":0},null,null,null,null,null,null,null,null,null,null,null,null,null,null,null,null,null,null,null,null,null,null,null,null,null,null,null,null,null,null,null,null,null,null,null,"氏　名",null,null,null,null,null,null,null,null,null,{"$f":"$BO$55","v":0},null,null,null,null,null,null,null,null,null,null,null,null,null,null,null,null,null,null,null,null,null,null,null,null,null,null,null,null,null,null,null,null,null,null,null,null,null,null,null,null,null,null,null,null,null,null,null,null,null,null,null,null,null,null,null,null,null,null,null,null,null,null,null,null,null,null,"氏　名",null,null,null,null,null,null,null,null,null,{"$f":"$U$55","v":0},null,null,null,null,null,null,null,null,null,null,null,null,null,null,null,null,null,null,null,null,null,null,null,null,null,null,null,null,null,null,null,null,null,null,null,"氏　名",null,null,null,null,null,null,null,null,null,{"$f":"$BO$55","v":0}]
[null,null,null,null,null,null,null,null,null,null,"個人番号",null,null,null,null,null,null,null,null,null,{"$f":"$U$56","v":0},null,null,null,null,null,null,null,null,null,null,null,null,null,null,null,null,null,null,null,null,null,null,null,null,null,null,null,null,null,null,null,null,null,null,null,"個人番号",null,null,null,null,null,null,null,null,null,null,null,null,null,null,null,null,null,null,null,null,null,null,null,null,null,null,null,null,null,null,null,null,null,null,null,null,null,null,null,null,null,null,null,null,null,null,null,null,null,null,null,null,null,null,null,null,null,null,null,null,null,null,null,null,null,null,null,null,null,null,null,null,null,null,null,null,"個人番号",null,null,null,null,null,null,null,null,null,null,null,null,null,null,null,null,null,null,null,null,null,null,null,null,null,null,null,null,null,null,null,null,null,null,null,null,null,null,null,null,null,null,null,null,null,"個人番号"]
[null,null,null,null,null,null,null,3,null,null,"（フリガナ）",null,null,null,null,null,null,null,null,null,{"$f":"$U$57","v":0},null,null,null,null,null,null,null,null,null,null,null,null,null,null,null,null,null,null,null,null,null,null,"区分",null,{"$f":"$AT$57","v":0},null,null,null,null,null,null,null,3,null,null,"（フリガナ）",null,null,null,null,null,null,null,null,null,{"$f":"$BO$57","v":0},null,null,null,null,null,null,null,null,null,null,null,null,null,null,null,null,null,null,null,null,null,null,"区分",null,{"$f":"$CN$57","v":0},null,null,null,null,null,null,null,null,null,null,null,null,null,null,null,null,null,null,null,null,null,null,null,null,null,null,null,null,null,null,null,null,null,null,null,null,null,null,3,null,null,"（フリガナ）",null,null,null,null,null,null,null,null,null,{"$f":"$U$57","v":0},null,null,null,null,null,null,null,null,null,null,null,null,null,null,null,null,null,null,null,null,null,null,"区分",null,{"$f":"$AT$57","v":0},null,null,null,null,null,null,null,3,null,null,"（フリガナ）",null,null,null,null,null,null,null,null,null,{"$f":"$BO$57","v":0},null,null,null,null,null,null,null,null,null,null,null,null,null,null,null,null,null,null,null,null,null,null,"区分",null,{"$f":"$CN$57","v":0}]
[null,null,null,null,null,null,null,null,null,null,"氏　名",null,null,null,null,null,null,null,null,null,{"$f":"$U$58","v":0},null,null,null,null,null,null,null,null,null,null,null,null,null,null,null,null,null,null,null,null,null,null,null,null,null,null,null,null,null,null,null,null,null,null,null,"氏　名",null,null,null,null,null,null,null,null,null,{"$f":"$BO$58","v":0},null,null,null,null,null,null,null,null,null,null,null,null,null,null,null,null,null,null,null,null,null,null,null,null,null,null,null,null,null,null,null,null,null,null,null,null,null,null,null,null,null,null,null,null,null,null,null,null,null,null,null,null,null,null,null,null,null,null,null,null,null,null,null,null,null,null,"氏　名",null,null,null,null,null,null,null,null,null,{"$f":"$U$58","v":0},null,null,null,null,null,null,null,null,null,null,null,null,null,null,null,null,null,null,null,null,null,null,null,null,null,null,null,null,null,null,null,null,null,null,null,"氏　名",null,null,null,null,null,null,null,null,null,{"$f":"$BO$58","v":0}]
[null,null,null,null,null,null,null,null,null,null,"個人番号",null,null,null,null,null,null,null,null,null,{"$f":"$U$59","v":0},null,null,null,null,null,null,null,null,null,null,null,null,null,null,null,null,null,null,null,null,null,null,null,null,null,null,null,null,null,null,null,null,null,null,null,"個人番号",null,null,null,null,null,null,null,null,null,null,null,null,null,null,null,null,null,null,null,null,null,null,null,null,null,null,null,null,null,null,null,null,null,null,null,null,null,null,null,null,null,null,null,null,null,null,null,null,null,null,null,null,null,null,null,null,null,null,null,null,null,null,null,null,null,null,null,null,null,null,null,null,null,null,null,null,"個人番号",null,null,null,null,null,null,null,null,null,null,null,null,null,null,null,null,null,null,null,null,null,null,null,null,null,null,null,null,null,null,null,null,null,null,null,null,null,null,null,null,null,null,null,null,null,"個人番号"]
[null,null,null,null,null,null,null,4,null,null,"（フリガナ）",null,null,null,null,null,null,null,null,null,{"$f":"$U$60","v":0},null,null,null,null,null,null,null,null,null,null,null,null,null,null,null,null,null,null,null,null,null,null,"区分",null,{"$f":"$AT$60","v":0},null,null,null,null,null,null,null,4,null,null,"（フリガナ）",null,null,null,null,null,null,null,null,null,{"$f":"$BO$60","v":0},null,null,null,null,null,null,null,null,null,null,null,null,null,null,null,null,null,null,null,null,null,null,"区分",null,{"$f":"$CN$60","v":0},null,null,null,null,null,null,null,null,null,null,null,null,null,null,null,null,null,null,null,null,null,null,null,null,null,null,null,null,null,null,null,null,null,null,null,null,null,null,4,null,null,"（フリガナ）",null,null,null,null,null,null,null,null,null,{"$f":"$U$60","v":0},null,null,null,null,null,null,null,null,null,null,null,null,null,null,null,null,null,null,null,null,null,null,"区分",null,{"$f":"$AT$60","v":0},null,null,null,null,null,null,null,4,null,null,"（フリガナ）",null,null,null,null,null,null,null,null,null,{"$f":"$BO$60","v":0},null,null,null,null,null,null,null,null,null,null,null,null,null,null,null,null,null,null,null,null,null,null,"区分",null,{"$f":"$CN$60","v":0}]
[null,null,null,null,null,null,null,null,null,null,"氏　名",null,null,null,null,null,null,null,null,null,{"$f":"$U$61","v":0},null,null,null,null,null,null,null,null,null,null,null,null,null,null,null,null,null,null,null,null,null,null,null,null,null,null,null,null,null,null,null,null,null,null,null,"氏　名",null,null,null,null,null,null,null,null,null,{"$f":"$BO$61","v":0},null,null,null,null,null,null,null,null,null,null,null,null,null,null,null,null,null,null,null,null,null,null,null,null,null,null,null,null,null,null,null,null,null,null,null,null,null,null,null,null,null,null,null,null,null,null,null,null,null,null,null,null,null,null,null,null,null,null,null,null,null,null,null,null,null,null,"氏　名",null,null,null,null,null,null,null,null,null,{"$f":"$U$61","v":0},null,null,null,null,null,null,null,null,null,null,null,null,null,null,null,null,null,null,null,null,null,null,null,null,null,null,null,null,null,null,null,null,null,null,null,"氏　名",null,null,null,null,null,null,null,null,null,{"$f":"$BO$61","v":0}]
[null,null,null,null,null,null,null,null,null,null,"個人番号",null,null,null,null,null,null,null,null,null,{"$f":"$U$62","v":0},null,null,null,null,null,null,null,null,null,null,null,null,null,null,null,null,null,null,null,null,null,null,null,null,null,null,null,null,null,null,null,null,null,null,null,"個人番号",null,null,null,null,null,null,null,null,null,null,null,null,null,null,null,null,null,null,null,null,null,null,null,null,null,null,null,null,null,null,null,null,null,null,null,null,null,null,null,null,null,null,null,null,null,null,null,null,null,null,null,null,null,null,null,null,null,null,null,null,null,null,null,null,null,null,null,null,null,null,null,null,null,null,null,null,"個人番号",null,null,null,null,null,null,null,null,null,null,null,null,null,null,null,null,null,null,null,null,null,null,null,null,null,null,null,null,null,null,null,null,null,null,null,null,null,null,null,null,null,null,null,null,null,"個人番号"]
[null,null,null,"未成年者",null,null,null,null,"外国人",null,null,null,"死亡退職",null,null,null,"災害者",null,null,null,"乙　欄",null,null,null,null,"本人が障害者",null,null,null,null,null,null,null,null,null,"寡婦",null,null,null,null,"ひとり親",null,null,null,null,null,"勤労学生",null,null,null,null,null,null,null,null,"中  途  就  ・  退  職",null,null,null,null,null,null,null,null,null,null,null,null,null,null,null,null,null,null,null,null,null,null,null,null,"受  給  者  生  年  月  日",null,null,null,null,null,null,null,null,null,null,null,null,null,null,null,null,null,null,null,null,null,null,null,null,null,null,null,null,null,null,null,null,null,null,null,null,null,null,null,null,null,null,null,null,null,"未成年者",null,null,null,null,"外国人",null,null,null,"死亡退職",null,null,null,"災害者",null,null,null,"乙　欄",null,null,null,null,"本人が障害者",null,null,null,null,null,null,null,null,null,"寡婦",null,null,null,null,"ひとり親",null,null,null,null,null,"勤労学生",null,null,null,null,null,null,null,null,"中  途  就  ・  退  職",null,null,null,null,null,null,null,null,null,null,null,null,null,null,null,null,null,null,null,null,null,null,null,null,"受  給  者  生  年  月  日"]
[]
[]
[null,null,null,null,null,null,null,null,null,null,null,null,null,null,null,null,null,null,null,null,null,null,null,null,null,"特別",null,null,null,null,"その他",null,null,null,null,null,null,null,null,null,null,null,null,null,null,null,null,null,null,null,null,null,null,null,null,null,null,null,null,null,null,null,null,null,null,null,null,null,null,null,null,null,null,null,null,null,null,null,null,null,null,null,null,null,null,null,null,null,null,null,null,null,null,null,null,null,null,null,null,null,null,null,null,null,null,null,null,null,null,null,null,null,null,null,null,null,null,null,null,null,null,null,null,null,null,null,null,null,null,null,null,null,null,null,null,null,null,null,null,null,null,null,null,null,null,null,null,null,"特別",null,null,null,null,"その他"]
[]
[null,null,null,null,null,null,null,null,null,null,null,null,null,null,null,null,null,null,null,null,null,null,null,null,null,null,null,null,null,null,null,null,null,null,null,null,null,null,null,null,null,null,null,null,null,null,null,null,null,null,null,null,null,null,null,"就職",null,null,null,null,"退職",null,null,null,null,"年",null,null,null,null,"月",null,null,null,null,"日",null,null,null,null,"元号",null,null,null,null,null,null,null,null,null,null,null,null,null,null,null,null,null,null,null,"年",null,null,null,null,"月",null,null,null,null,"日",null,null,null,null,null,null,null,null,null,null,null,null,null,null,null,null,null,null,null,null,null,null,null,null,null,null,null,null,null,null,null,null,null,null,null,null,null,null,null,null,null,null,null,null,null,null,null,null,null,null,null,null,null,null,null,null,null,null,null,null,null,null,null,null,null,null,null,"就職",null,null,null,null,"退職",null,null,null,null,"年",null,null,null,null,"月",null,null,null,null,"日",null,null,null,null,"元号",null,null,null,null,null,null,null,null,null,null,null,null,null,null,null,null,null,null,null,"年",null,null,null,null,"月",null,null,null,null,"日"]
[]
[]
[]
[null,null,null,{"$f":"$D$72","v":0},null,null,null,null,{"$f":"$I$72","v":0},null,null,null,{"$f":"$M$72","v":0},null,null,null,{"$f":"$Q$72","v":0},null,null,null,{"$f":"$U$72","v":0},null,null,null,null,{"$f":"$Z$72","v":0},null,null,null,null,{"$f":"$AE$72","v":0},null,null,null,null,{"$f":"$AJ$72","v":0},null,null,null,null,{"$f":"$AO$72","v":0},null,null,null,null,{"$f":"$AT$72","v":0},null,null,null,null,null,null,null,null,null,{"$f":"$BD$72","v":0},null,null,null,null,{"$f":"$BI$72","v":0},null,null,null,null,{"$f":"$BN$72","v":7},null,null,null,null,{"$f":"$BS$72","v":0},null,null,null,null,{"$f":"$BX$72","v":0},null,null,null,null,{"$f":"$CC$72","v":0},null,null,null,null,null,null,null,null,null,null,null,null,null,null,null,null,null,null,null,{"$f":"$CW$72","v":0},null,null,null,null,{"$f":"$DB$72","v":0},null,null,null,null,{"$f":"$DG$72","v":0},null,null,null,null,null,null,null,null,null,null,null,null,null,null,null,{"$f":"$D$72","v":0},null,null,null,null,{"$f":"$I$72","v":0},null,null,null,{"$f":"$M$72","v":0},null,null,null,{"$f":"$Q$72","v":0},null,null,null,{"$f":"$U$72","v":0},null,null,null,null,{"$f":"$Z$72","v":0},null,null,null,null,{"$f":"$AE$72","v":0},null,null,null,null,{"$f":"$AJ$72","v":0},null,null,null,null,{"$f":"$AO$72","v":0},null,null,null,null,{"$f":"$AT$72","v":0},null,null,null,null,null,null,null,null,null,{"$f":"$BD$72","v":0},null,null,null,null,{"$f":"$BI$72","v":0},null,null,null,null,{"$f":"$BN$72","v":7},null,null,null,null,{"$f":"$BS$72","v":0},null,null,null,null,{"$f":"$BX$72","v":0},null,null,null,null,{"$f":"$CC$72","v":0},null,null,null,null,null,null,null,null,null,null,null,null,null,null,null,null,null,null,null,{"$f":"$CW$72","v":0},null,null,null,null,{"$f":"$DB$72","v":0},null,null,null,null,{"$f":"$DG$72","v":0}]
[]
[]
[]
[null,"（税務署提出用）",null,"支払者",null,null,null,null,"個人番号又は\n法人番号",null,null,null,null,null,null,null,null,null,null,null,{"$f":"$U$76","v":0},null,null,null,null,null,null,null,null,null,null,null,null,null,null,null,null,null,null,null,null,null,null,null,null,null,null,null,null,null,null,null,null,"（支払者の法人番号13桁、個人事業主の場合は個人番号12桁を記載してください。）",null,null,null,null,null,null,null,null,null,null,null,null,null,null,null,null,null,null,null,null,null,null,null,null,null,null,null,null,null,null,null,null,null,null,null,null,null,null,null,null,null,null,null,null,null,null,null,null,null,null,null,null,null,null,null,null,null,null,null,null,null,null,null,null,null,null,null,null,null,"（受給者交付用）",null,null,"支払者",null,null,null,null,"個人番号又は\n法人番号",null,null,null,null,null,null,null,null,null,null,null,{"$f":"$U$76","v":0},null,null,null,null,null,null,null,null,null,null,null,null,null,null,null,null,null,null,null,null,null,null,null,null,null,null,null,null,null,null,null,null,"（支払者の法人番号13桁、個人事業主の場合は個人番号12桁を記載してください。）"]
[]
[null,null,null,null,null,null,null,null,"住所（居所）\n又は所在地",null,null,null,null,null,null,null,null,null,null,null,null,{"$f":"$V$78","v":0},null,null,null,null,null,null,null,null,null,null,null,null,null,null,null,null,null,null,null,null,null,null,null,null,null,null,null,null,null,null,null,null,null,null,null,null,null,null,null,null,null,null,null,null,null,null,null,null,null,null,null,null,null,null,null,null,null,null,null,null,null,null,null,null,null,null,null,null,null,null,null,null,null,null,null,null,null,null,null,null,null,null,null,null,null,null,null,null,null,null,null,null,null,null,null,null,null,null,null,null,null,null,null,null,null,null,null,null,null,"住所（居所）\n又は所在地",null,null,null,null,null,null,null,null,null,null,null,null,{"$f":"$V$78","v":0}]
[]
[]
[null,null,null,null,null,null,null,null,"氏名又は名称",null,null,null,null,null,null,null,null,null,null,null,null,{"$f":"$V$81","v":0},null,null,null,null,null,null,null,null,null,null,null,null,null,null,null,null,null,null,null,null,null,null,null,null,null,null,null,null,null,null,null,null,null,null,null,null,null,null,null,null,null,null,null,null,null,null,null,null,null,null,null,null,null,null,null,null,null,null,null,null,null,null,null,null,null,null,null,null,null,null,null,null,null,null,null,null,null,null,null,null,null,null,null,null,null,null,null,null,null,null,null,null,null,null,null,null,null,null,null,null,null,null,null,null,null,null,null,null,null,"氏名又は名称",null,null,null,null,null,null,null,null,null,null,null,null,{"$f":"$V$81","v":0}]
[null,null,null,null,null,null,null,null,null,null,null,null,null,null,null,null,null,null,null,null,null,null,null,null,null,null,null,null,null,null,null,null,null,null,null,null,null,null,null,null,null,null,null,null,null,null,null,null,null,null,null,null,null,null,null,null,null,null,null,null,null,null,null,null,null,null,null,null,null,null,null,null,null,null,null,null,null,null,null,null,null,null,null,null,null,null,null,"（電話）",null,null,null,null,null,{"$f":"$CP$82","v":0},null,null,null,null,null,null,null,null,null,null,null,null,null,null,null,null,null,null,null,null,null,null,null,null,null,null,null,null,null,null,null,null,null,null,null,null,null,null,null,null,null,null,null,null,null,null,null,null,null,null,null,null,null,null,null,null,null,null,null,null,null,null,null,null,null,null,null,null,null,null,null,null,null,null,null,null,null,null,null,null,null,null,null,null,null,null,null,null,null,null,null,null,null,null,null,null,null,null,null,null,null,null,null,null,null,null,null,null,null,null,null,null,null,null,null,null,"（電話）",null,null,null,null,null,{"$f":"$CP$82","v":0}]
[]
[null,null,null,"署　番　号",null,null,null,null,null,null,null,null,null,null,null,null,null,null,null,null,null,null,null,null,null,null,null,null,null,null,null,null,null,null,null,null,null,"整　理　番　号",null,null,null,null,null,null,null,null,null,null,null,null,null,null,null,null,null,null,null,null,null,null,null,null,null,null,null,null,null,null,null,null,null,null,null,null,null,null,null,null,null,null,null,null,null,null,null,null,null,null,null,null,null,null,null,null,null,null,null,null,null,null,null,null,null,null,null,null,null,null,null,null,null,null,null,null,null,null,null,null,null,null,null,null,null,null,null,null,"署　番　号",null,null,null,null,null,null,null,null,null,null,null,null,null,null,null,null,null,null,null,null,null,null,null,null,null,null,null,null,null,null,null,null,null,"整　理　番　号"]